[Event "Late-Titled-Tuesday-Blitz-April-02-2024"]
[Site "Chess.com"]
[Date "2024.04.02"]
[Round "1"]
[White "emeli_chess"]
[Black "Rodalquilar"]
[Result "0-1"]
[WhiteElo "2419"]
[BlackElo "2740"]
[TimeControl "180+1"]
[EndTime "14:06:52 PDT"]
[Termination "Rodalquilar won on time"]

1. d4 {[%clk 0:02:59.5]} 1... d5 {[%clk 0:03:00.1]} 2. c4 {[%clk 0:02:59]} 2...
e6 {[%clk 0:03:00.7]} 3. Nc3 {[%clk 0:02:58.9]} 3... a6 {[%clk 0:03:01.3]} 4.
cxd5 {[%clk 0:02:57.7]} 4... exd5 {[%clk 0:03:02.2]} 5. Nf3 {[%clk 0:02:54.1]}
5... Nf6 {[%clk 0:03:02.6]} 6. Bg5 {[%clk 0:02:53.8]} 6... Be6 {[%clk 0:03:03]}
7. e3 {[%clk 0:02:53.1]} 7... Nbd7 {[%clk 0:03:03.5]} 8. Bd3 {[%clk 0:02:52.4]}
8... Bd6 {[%clk 0:03:03.7]} 9. O-O {[%clk 0:02:47.4]} 9... c6 {[%clk 0:03:03.6]}
10. Bh4 {[%clk 0:02:26.5]} 10... Qc7 {[%clk 0:03:02.5]} 11. Rc1 {[%clk
0:02:10.8]} 11... h6 {[%clk 0:03:01.5]} 12. e4 {[%clk 0:02:00.4]} 12... dxe4
{[%clk 0:03:01.5]} 13. Nxe4 {[%clk 0:02:00.1]} 13... Nxe4 {[%clk 0:03:02]} 14.
Bxe4 {[%clk 0:02:00.1]} 14... Nb6 {[%clk 0:02:55.1]} 15. d5 {[%clk 0:01:36.1]}
15... Nxd5 {[%clk 0:02:52.1]} 16. Bxd5 {[%clk 0:01:34.1]} 16... Bxd5 {[%clk
0:02:52.5]} 17. Re1+ {[%clk 0:01:34.3]} 17... Kf8 {[%clk 0:02:53.1]} 18. Bg3
{[%clk 0:01:27.2]} 18... Bxg3 {[%clk 0:02:50.7]} 19. hxg3 {[%clk 0:01:26.4]}
19... Rd8 {[%clk 0:02:51.4]} 20. Qe2 {[%clk 0:01:15.2]} 20... g6 {[%clk
0:02:45.5]} 21. b3 {[%clk 0:00:55]} 21... Kg7 {[%clk 0:02:45.5]} 22. Qb2+ {[%clk
0:00:51.8]} 22... Kh7 {[%clk 0:02:44.5]} 23. Qf6 {[%clk 0:00:49.1]} 23... Rd6
{[%clk 0:02:42.3]} 24. Re7 {[%clk 0:00:35.7]} 24... Rxf6 {[%clk 0:02:39.2]} 25.
Rxc7 {[%clk 0:00:35.5]} 25... Rb8 {[%clk 0:02:33.3]} 26. Re1 {[%clk 0:00:33]}
26... a5 {[%clk 0:02:24.2]} 27. Ree7 {[%clk 0:00:30.5]} 27... b5 {[%clk
0:02:24.7]} 28. Ne5 {[%clk 0:00:26.4]} 28... Kg7 {[%clk 0:02:19.5]} 29. Nd7
{[%clk 0:00:24.4]} 29... Rd8 {[%clk 0:02:07.9]} 30. Nxf6 {[%clk 0:00:24.1]}
30... Kxf6 {[%clk 0:02:08.8]} 31. Red7 {[%clk 0:00:22.4]} 31... Re8 {[%clk
0:02:07.9]} 32. Kf1 {[%clk 0:00:19.6]} 32... a4 {[%clk 0:02:07.1]} 33. bxa4
{[%clk 0:00:18.7]} 33... bxa4 {[%clk 0:02:00.6]} 34. a3 {[%clk 0:00:18.2]} 34...
Bc4+ {[%clk 0:01:59]} 35. Kg1 {[%clk 0:00:17.9]} 35... Re1+ {[%clk 0:01:59.1]}
36. Kh2 {[%clk 0:00:17.6]} 36... Bd5 {[%clk 0:01:59.6]} 37. Ra7 {[%clk
0:00:14.4]} 37... Re2 {[%clk 0:01:59.1]} 38. Kg1 {[%clk 0:00:13.8]} 38... Re1+
{[%clk 0:01:55.3]} 39. Kh2 {[%clk 0:00:13.7]} 39... Rf1 {[%clk 0:01:43.5]} 40.
f3 {[%clk 0:00:12]} 40... Ke6 {[%clk 0:01:38.3]} 41. Re7+ {[%clk 0:00:10.5]}
41... Kd6 {[%clk 0:01:38.4]} 42. Reb7 {[%clk 0:00:10]} 42... Bb3 {[%clk
0:01:37.1]} 43. Rb4 {[%clk 0:00:06.6]} 43... c5 {[%clk 0:01:33.3]} 44. Rf4
{[%clk 0:00:05.9]} 44... Ra1 {[%clk 0:01:30.7]} 45. Ra6+ {[%clk 0:00:04.8]}
45... Kd5 {[%clk 0:01:30.6]} 46. Rxf7 {[%clk 0:00:03.5]} 46... c4 {[%clk
0:01:28.2]} 47. Rd7+ {[%clk 0:00:03]} 47... Kc5 {[%clk 0:01:28]} 48. Rxg6 {[%clk
0:00:01.9]} 48... Rxa3 {[%clk 0:01:25.3]} 49. Rc7+ {[%clk 0:00:02.1]} 49... Kb4
{[%clk 0:01:25.6]} 50. Rxh6 {[%clk 0:00:02.2]} 50... Ra1 {[%clk 0:01:25.4]} 51.
Rhc6 {[%clk 0:00:02.1]} 51... a3 {[%clk 0:01:25.4]} 52. Rb7+ {[%clk 0:00:02]}
52... Kc3 {[%clk 0:01:25.6]} 53. Ra6 {[%clk 0:00:02.1]} 53... Kb2 {[%clk
0:01:26]} 54. Rba7 {[%clk 0:00:01.3]} 54... a2 {[%clk 0:01:26.3]} 0-1

[Event "Late-Titled-Tuesday-Blitz-April-02-2024"]
[Site "Chess.com"]
[Date "2024.04.02"]
[Round "1"]
[White "Szachulec75"]
[Black "subham777"]
[Result "0-1"]
[WhiteElo "2036"]
[BlackElo "2557"]
[TimeControl "180+1"]
[EndTime "14:06:52 PDT"]
[Termination "subham777 won by resignation"]

1. Nf3 {[%clk 0:02:58]} 1... d5 {[%clk 0:02:58.7]} 2. g3 {[%clk 0:02:56.3]} 2...
Nf6 {[%clk 0:02:58.1]} 3. Bg2 {[%clk 0:02:56.9]} 3... e6 {[%clk 0:02:57]} 4. d3
{[%clk 0:02:57.3]} 4... Be7 {[%clk 0:02:57.2]} 5. O-O {[%clk 0:02:57.1]} 5...
O-O {[%clk 0:02:57.8]} 6. Nbd2 {[%clk 0:02:56]} 6... c5 {[%clk 0:02:58.4]} 7. e4
{[%clk 0:02:55.5]} 7... dxe4 {[%clk 0:02:58.9]} 8. dxe4 {[%clk 0:02:54.1]} 8...
Nc6 {[%clk 0:02:59.5]} 9. c3 {[%clk 0:02:54.3]} 9... Qc7 {[%clk 0:02:58.8]} 10.
Qc2 {[%clk 0:02:54.8]} 10... b5 {[%clk 0:02:54.2]} 11. Re1 {[%clk 0:02:54.5]}
11... Bb7 {[%clk 0:02:52.6]} 12. h3 {[%clk 0:02:50.2]} 12... Rfd8 {[%clk
0:02:48.5]} 13. Nf1 {[%clk 0:02:48.6]} 13... a5 {[%clk 0:02:45.7]} 14. Bf4
{[%clk 0:02:45.1]} 14... e5 {[%clk 0:02:42.3]} 15. Bg5 {[%clk 0:02:45.4]} 15...
Bc8 {[%clk 0:02:41.6]} 16. a4 {[%clk 0:02:39.3]} 16... b4 {[%clk 0:02:38.9]} 17.
Ne3 {[%clk 0:02:36.3]} 17... Be6 {[%clk 0:02:27.6]} 18. Bxf6 {[%clk 0:02:34.8]}
18... Bxf6 {[%clk 0:02:24.5]} 19. Bf1 {[%clk 0:02:33.9]} 19... Ne7 {[%clk
0:02:20.9]} 20. Nd2 {[%clk 0:02:27.4]} 20... Qd7 {[%clk 0:02:14.5]} 21. Ndc4
{[%clk 0:02:27.3]} 21... Qb7 {[%clk 0:01:50.8]} 22. f3 {[%clk 0:02:22.8]} 22...
h5 {[%clk 0:01:49.1]} 23. h4 {[%clk 0:02:19.9]} 23... g5 {[%clk 0:01:46.2]} 24.
hxg5 {[%clk 0:02:19.1]} 24... Bxg5 {[%clk 0:01:47.1]} 25. Nxe5 {[%clk
0:02:14.4]} 25... h4 {[%clk 0:01:40.8]} 26. f4 {[%clk 0:02:13]} 26... Qc7 {[%clk
0:01:31.9]} 27. Nf3 {[%clk 0:01:56.1]} 27... Bh6 {[%clk 0:01:13.4]} 28. Nxh4
{[%clk 0:01:55.6]} 28... Rd7 {[%clk 0:00:52.8]} 29. Qh2 {[%clk 0:01:52.2]} 29...
Rad8 {[%clk 0:00:48.9]} 30. Rad1 {[%clk 0:01:51.1]} 30... Rxd1 {[%clk
0:00:45.4]} 31. Rxd1 {[%clk 0:01:50.6]} 31... Rxd1 {[%clk 0:00:45.6]} 32. Nxd1
{[%clk 0:01:50.9]} 32... Bb3 {[%clk 0:00:44.9]} 33. Ne3 {[%clk 0:01:47.9]} 33...
Bg7 {[%clk 0:00:43.9]} 34. Nhf5 {[%clk 0:01:46]} 34... Nxf5 {[%clk 0:00:43.4]}
35. Nxf5 {[%clk 0:01:45.6]} 35... Qd8 {[%clk 0:00:33.5]} 36. Qh5 {[%clk
0:01:40.4]} 36... Be6 {[%clk 0:00:24.2]} 37. Nxg7 {[%clk 0:01:23.7]} 37... Kxg7
{[%clk 0:00:23.7]} 38. f5 {[%clk 0:01:22.5]} 38... Bb3 {[%clk 0:00:20.5]} 39.
Qg4+ {[%clk 0:01:21.3]} 39... Kf8 {[%clk 0:00:18.3]} 40. e5 {[%clk 0:01:19.6]}
40... Qd2 {[%clk 0:00:14.9]} 41. Qf4 {[%clk 0:01:15.2]} 41... Qxf4 {[%clk
0:00:13]} 42. gxf4 {[%clk 0:01:14.7]} 42... Bxa4 {[%clk 0:00:13.7]} 43. Kf2
{[%clk 0:01:10.9]} 43... Bc2 {[%clk 0:00:13.4]} 44. f6 {[%clk 0:01:08]} 44... a4
{[%clk 0:00:10.3]} 45. cxb4 {[%clk 0:01:07.4]} 45... cxb4 {[%clk 0:00:10.9]} 46.
Ke2 {[%clk 0:01:07.2]} 46... a3 {[%clk 0:00:10.1]} 47. bxa3 {[%clk 0:01:06.8]}
47... bxa3 {[%clk 0:00:11]} 48. Kd2 {[%clk 0:01:06.9]} 48... a2 {[%clk
0:00:11.4]} 49. Kxc2 {[%clk 0:01:07.8]} 49... a1=Q {[%clk 0:00:11.9]} 50. Bd3
{[%clk 0:01:05.6]} 50... Qa4+ {[%clk 0:00:11.6]} 51. Kd2 {[%clk 0:01:05.1]}
51... Qxf4+ {[%clk 0:00:12.5]} 52. Kc3 {[%clk 0:01:05.3]} 52... Qxe5+ {[%clk
0:00:13.3]} 53. Kc4 {[%clk 0:01:06.1]} 53... Qxf6 {[%clk 0:00:13.9]} 0-1

[Event "Late-Titled-Tuesday-Blitz-April-02-2024"]
[Site "Chess.com"]
[Date "2024.04.02"]
[Round "1"]
[White "Zq1"]
[Black "sacrifoice"]
[Result "1-0"]
[WhiteElo "2603"]
[BlackElo "2270"]
[TimeControl "180+1"]
[EndTime "14:06:53 PDT"]
[Termination "Zq1 won on time"]

1. d4 {[%clk 0:02:59]} 1... Nf6 {[%clk 0:02:59.7]} 2. c4 {[%clk 0:02:58.2]} 2...
g6 {[%clk 0:02:59.7]} 3. Nc3 {[%clk 0:02:57.3]} 3... Bg7 {[%clk 0:02:59.9]} 4.
e4 {[%clk 0:02:57]} 4... d6 {[%clk 0:03:00.2]} 5. Nf3 {[%clk 0:02:57.1]} 5...
O-O {[%clk 0:03:00.2]} 6. Be2 {[%clk 0:02:57.3]} 6... Nbd7 {[%clk 0:03:00.2]} 7.
O-O {[%clk 0:02:56.8]} 7... e5 {[%clk 0:02:59.5]} 8. Be3 {[%clk 0:02:56.3]} 8...
Ng4 {[%clk 0:02:59]} 9. Bg5 {[%clk 0:02:55.9]} 9... f6 {[%clk 0:02:58.9]} 10.
Bd2 {[%clk 0:02:55.1]} 10... f5 {[%clk 0:02:54.6]} 11. Ng5 {[%clk 0:02:37.5]}
11... Ndf6 {[%clk 0:02:25]} 12. d5 {[%clk 0:02:24.8]} 12... Qe7 {[%clk
0:02:13.8]} 13. f3 {[%clk 0:02:17.6]} 13... Nh6 {[%clk 0:02:12.8]} 14. exf5
{[%clk 0:02:13.4]} 14... gxf5 {[%clk 0:02:09.1]} 15. Bd3 {[%clk 0:02:10.3]}
15... Bd7 {[%clk 0:02:01.5]} 16. Qc2 {[%clk 0:02:08.7]} 16... Rae8 {[%clk
0:01:59.1]} 17. Rae1 {[%clk 0:02:08.3]} 17... Nh5 {[%clk 0:01:52.6]} 18. g4
{[%clk 0:01:56.5]} 18... Nf6 {[%clk 0:01:37.9]} 19. gxf5 {[%clk 0:01:45.2]}
19... c6 {[%clk 0:01:02.3]} 20. Ne6 {[%clk 0:01:40.3]} 20... Rf7 {[%clk
0:00:58.8]} 21. Kh1 {[%clk 0:01:37.3]} 21... cxd5 {[%clk 0:00:50.4]} 22. cxd5
{[%clk 0:01:31.4]} 22... e4 {[%clk 0:00:26.2]} 23. fxe4 {[%clk 0:01:26.1]} 23...
Nhg4 {[%clk 0:00:25.3]} 24. Bg5 {[%clk 0:01:18.2]} 24... h6 {[%clk 0:00:21.6]}
25. Bh4 {[%clk 0:01:16.4]} 25... Kh7 {[%clk 0:00:17.4]} 26. Rg1 {[%clk
0:01:13.6]} 26... Rg8 {[%clk 0:00:17.2]} 27. Rxg4 {[%clk 0:01:09.7]} 27... Nxg4
{[%clk 0:00:13.1]} 28. Bxe7 {[%clk 0:01:07.9]} 28... Bxc3 {[%clk 0:00:10.5]} 29.
bxc3 {[%clk 0:01:02.7]} 29... Bxe6 {[%clk 0:00:03.9]} 30. dxe6 {[%clk
0:00:57.1]} 30... Rxe7 {[%clk 0:00:03.7]} 31. e5 {[%clk 0:00:51.1]} 31... Rc7
{[%clk 0:00:03.3]} 32. f6+ {[%clk 0:00:49.2]} 32... Kh8 {[%clk 0:00:03.3]} 33.
Rg1 {[%clk 0:00:37.4]} 33... Rxc3 {[%clk 0:00:01.1]} 34. Rxg4 {[%clk 0:00:36.9]}
1-0

[Event "Late-Titled-Tuesday-Blitz-April-02-2024"]
[Site "Chess.com"]
[Date "2024.04.02"]
[Round "1"]
[White "CURRUTACO59"]
[Black "secretworker2027"]
[Result "0-1"]
[WhiteElo "2261"]
[BlackElo "2601"]
[TimeControl "180+1"]
[EndTime "14:06:53 PDT"]
[Termination "secretworker2027 won by resignation"]

1. Nf3 {[%clk 0:02:54.1]} 1... Nf6 {[%clk 0:02:59.6]} 2. d4 {[%clk 0:02:52.2]}
2... d5 {[%clk 0:02:59.5]} 3. c4 {[%clk 0:02:51.4]} 3... c6 {[%clk 0:02:59.7]}
4. e3 {[%clk 0:02:50.7]} 4... Bf5 {[%clk 0:02:59.4]} 5. Nc3 {[%clk 0:02:50.2]}
5... e6 {[%clk 0:02:59.8]} 6. Bd3 {[%clk 0:02:50.4]} 6... Bxd3 {[%clk 0:02:59]}
7. Qxd3 {[%clk 0:02:51.3]} 7... Bb4 {[%clk 0:02:59]} 8. O-O {[%clk 0:02:50.5]}
8... O-O {[%clk 0:02:58.8]} 9. a3 {[%clk 0:02:50.5]} 9... Bxc3 {[%clk
0:02:58.6]} 10. bxc3 {[%clk 0:02:49.6]} 10... Nbd7 {[%clk 0:02:53.7]} 11. a4
{[%clk 0:02:49.6]} 11... Re8 {[%clk 0:02:47.2]} 12. cxd5 {[%clk 0:02:39.9]}
12... cxd5 {[%clk 0:02:45.8]} 13. c4 {[%clk 0:02:39.9]} 13... Rc8 {[%clk
0:02:41.3]} 14. cxd5 {[%clk 0:02:32.1]} 14... exd5 {[%clk 0:02:34.6]} 15. Ba3
{[%clk 0:02:29.9]} 15... Ne4 {[%clk 0:02:33.6]} 16. Rfc1 {[%clk 0:02:28.1]}
16... Qa5 {[%clk 0:02:25.7]} 17. Qb3 {[%clk 0:02:15.9]} 17... Nb6 {[%clk
0:02:21.2]} 18. Bb4 {[%clk 0:02:14.4]} 18... Qa6 {[%clk 0:02:17]} 19. Bc5 {[%clk
0:02:04.4]} 19... Nc4 {[%clk 0:02:14.9]} 20. Bb4 {[%clk 0:01:53.6]} 20... Qg6
{[%clk 0:02:06.5]} 21. h3 {[%clk 0:01:51.6]} 21... b6 {[%clk 0:02:05]} 22. a5
{[%clk 0:01:50]} 22... b5 {[%clk 0:01:59.9]} 23. a6 {[%clk 0:01:49.4]} 23... Rc6
{[%clk 0:01:45]} 24. Be1 {[%clk 0:01:47]} 24... Rb6 {[%clk 0:01:31.8]} 25. Ba5
{[%clk 0:01:35.6]} 25... Rxa6 {[%clk 0:01:23.1]} 26. Qxb5 {[%clk 0:01:32.2]}
26... Qc6 {[%clk 0:01:13.4]} 27. Qxc6 {[%clk 0:01:25.8]} 27... Rxc6 {[%clk
0:01:14.3]} 28. Bb4 {[%clk 0:01:18.3]} 28... a6 {[%clk 0:01:12.6]} 29. Ra2
{[%clk 0:01:13.3]} 29... Ra8 {[%clk 0:01:07.6]} 30. Rca1 {[%clk 0:01:12.7]}
30... a5 {[%clk 0:01:07.7]} 31. Ne5 {[%clk 0:00:55.6]} 31... Rca6 {[%clk
0:00:50.4]} 32. Nd7 {[%clk 0:00:30.5]} 32... f6 {[%clk 0:00:43]} 33. Nc5 {[%clk
0:00:29.1]} 33... Nxc5 {[%clk 0:00:42.5]} 34. Bxc5 {[%clk 0:00:28.4]} 34... a4
{[%clk 0:00:42]} 35. Kf1 {[%clk 0:00:23.9]} 35... Kf7 {[%clk 0:00:40.7]} 36. Ke2
{[%clk 0:00:24]} 36... Ke6 {[%clk 0:00:41.3]} 37. Kd3 {[%clk 0:00:24.1]} 37...
Kd7 {[%clk 0:00:42]} 38. e4 {[%clk 0:00:20.6]} 38... Kc6 {[%clk 0:00:42]} 39. f3
{[%clk 0:00:18.7]} 39... Rb8 {[%clk 0:00:40.2]} 40. Rxa4 {[%clk 0:00:12.3]}
40... Rxa4 {[%clk 0:00:40.1]} 41. Rxa4 {[%clk 0:00:10.6]} 41... Nb2+ {[%clk
0:00:40.4]} 0-1

[Event "Late-Titled-Tuesday-Blitz-April-02-2024"]
[Site "Chess.com"]
[Date "2024.04.02"]
[Round "1"]
[White "rdarruda"]
[Black "TigrVShlyape"]
[Result "0-1"]
[WhiteElo "2509"]
[BlackElo "2958"]
[TimeControl "180+1"]
[EndTime "14:06:58 PDT"]
[Termination "TigrVShlyape won by resignation"]

1. Nf3 {[%clk 0:02:37.9]} 1... Nf6 {[%clk 0:02:56.8]} 2. d4 {[%clk 0:02:36.9]}
2... e6 {[%clk 0:02:54.6]} 3. c4 {[%clk 0:02:35.2]} 3... b6 {[%clk 0:02:47.5]}
4. e3 {[%clk 0:02:34.6]} 4... Bb7 {[%clk 0:02:46.8]} 5. Nc3 {[%clk 0:02:34.6]}
5... Bb4 {[%clk 0:02:45.2]} 6. Bd2 {[%clk 0:02:34.1]} 6... a5 {[%clk 0:02:45.3]}
7. Be2 {[%clk 0:02:32.2]} 7... O-O {[%clk 0:02:44.6]} 8. O-O {[%clk 0:02:31.9]}
8... d5 {[%clk 0:02:42.4]} 9. Qc2 {[%clk 0:02:31.2]} 9... Nbd7 {[%clk 0:02:41]}
10. a3 {[%clk 0:02:30.2]} 10... Be7 {[%clk 0:02:36]} 11. Bd3 {[%clk 0:02:28.2]}
11... dxc4 {[%clk 0:02:33.1]} 12. Bxc4 {[%clk 0:02:27.6]} 12... Bxf3 {[%clk
0:02:33]} 13. gxf3 {[%clk 0:02:27.9]} 13... c6 {[%clk 0:02:32.1]} 14. f4 {[%clk
0:02:25.8]} 14... b5 {[%clk 0:02:30]} 15. Be2 {[%clk 0:02:22]} 15... Nb6 {[%clk
0:02:27.9]} 16. Bf3 {[%clk 0:02:20.2]} 16... Rc8 {[%clk 0:02:26.7]} 17. Ne4
{[%clk 0:02:16.9]} 17... Nc4 {[%clk 0:02:18.2]} 18. Be1 {[%clk 0:02:12.5]} 18...
a4 {[%clk 0:02:17.7]} 19. Nc5 {[%clk 0:02:06.3]} 19... Bxc5 {[%clk 0:02:09.3]}
20. dxc5 {[%clk 0:02:07.2]} 20... Qe7 {[%clk 0:02:05.4]} 21. Be2 {[%clk
0:02:01.1]} 21... e5 {[%clk 0:01:49.1]} 22. Bxc4 {[%clk 0:01:59.3]} 22... bxc4
{[%clk 0:01:48.8]} 23. Qxc4 {[%clk 0:01:58.9]} 23... exf4 {[%clk 0:01:48.9]} 24.
Qxf4 {[%clk 0:01:57.6]} 24... Ne4 {[%clk 0:01:42.5]} 25. Bb4 {[%clk 0:01:53.3]}
25... Rfe8 {[%clk 0:01:37.7]} 26. Rad1 {[%clk 0:01:51.9]} 26... Qe6 {[%clk
0:01:33]} 27. Rd4 {[%clk 0:01:47.6]} 27... g5 {[%clk 0:01:30]} 28. Qf3 {[%clk
0:01:42.4]} 28... Qg6 {[%clk 0:01:27.1]} 29. Rfd1 {[%clk 0:01:34.7]} 29... g4
{[%clk 0:01:26.1]} 30. Qf4 {[%clk 0:01:29.9]} 30... h5 {[%clk 0:01:26.1]} 31.
Kh1 {[%clk 0:01:12.1]} 31... Re6 {[%clk 0:01:18]} 32. Rd8+ {[%clk 0:01:11.3]}
32... Rxd8 {[%clk 0:01:17.5]} 33. Rxd8+ {[%clk 0:01:12.2]} 33... Kh7 {[%clk
0:01:17.1]} 34. Bc3 {[%clk 0:00:27.7]} 34... Nxc3 {[%clk 0:01:16.3]} 35. bxc3
{[%clk 0:00:28.6]} 35... Rf6 {[%clk 0:01:16.3]} 36. Qd4 {[%clk 0:00:28.5]} 36...
Qf5 {[%clk 0:01:11.4]} 37. e4 {[%clk 0:00:22.3]} 37... Qf3+ {[%clk 0:01:08.6]}
38. Kg1 {[%clk 0:00:22.2]} 38... h4 {[%clk 0:01:04.8]} 39. Rd6 {[%clk
0:00:20.4]} 39... Rf4 {[%clk 0:01:02.6]} 40. Rd8 {[%clk 0:00:19]} 40... Rf6
{[%clk 0:01:00.4]} 41. Rd6 {[%clk 0:00:18.3]} 41... h3 {[%clk 0:00:43.1]} 42.
Kf1 {[%clk 0:00:18.1]} 42... Qg2+ {[%clk 0:00:38]} 43. Ke2 {[%clk 0:00:17.6]}
43... Qf3+ {[%clk 0:00:36.9]} 44. Ke1 {[%clk 0:00:17.1]} 44... Rf4 {[%clk
0:00:36.3]} 45. Rd8 {[%clk 0:00:15.9]} 45... Rxe4+ {[%clk 0:00:36.1]} 0-1

[Event "Late-Titled-Tuesday-Blitz-April-02-2024"]
[Site "Chess.com"]
[Date "2024.04.02"]
[Round "1"]
[White "PositionalPanther"]
[Black "RichardShtivelband"]
[Result "0-1"]
[WhiteElo "2587"]
[BlackElo "2288"]
[TimeControl "180+1"]
[EndTime "14:06:58 PDT"]
[Termination "RichardShtivelband won by resignation"]

1. Nf3 {[%clk 0:03:00.9]} 1... Nf6 {[%clk 0:02:59.3]} 2. g3 {[%clk 0:03:01.3]}
2... d5 {[%clk 0:02:57.3]} 3. Bg2 {[%clk 0:03:01.2]} 3... e6 {[%clk 0:02:57.2]}
4. O-O {[%clk 0:03:01.6]} 4... Be7 {[%clk 0:02:57.2]} 5. c4 {[%clk 0:03:02]}
5... O-O {[%clk 0:02:54.9]} 6. b3 {[%clk 0:03:02.3]} 6... c5 {[%clk 0:02:52.9]}
7. Bb2 {[%clk 0:03:01.9]} 7... Nc6 {[%clk 0:02:52.4]} 8. cxd5 {[%clk 0:03:01.7]}
8... Nxd5 {[%clk 0:02:51.5]} 9. Nc3 {[%clk 0:02:59.4]} 9... Bf6 {[%clk
0:02:39.9]} 10. Qc2 {[%clk 0:02:58.8]} 10... Ndb4 {[%clk 0:02:24.9]} 11. Qb1
{[%clk 0:02:56.2]} 11... Nd4 {[%clk 0:02:17.4]} 12. Nxd4 {[%clk 0:02:53.5]}
12... cxd4 {[%clk 0:02:17.4]} 13. Ne4 {[%clk 0:02:50.7]} 13... e5 {[%clk
0:02:09.3]} 14. a3 {[%clk 0:02:49.4]} 14... Nc6 {[%clk 0:02:08.9]} 15. Nxf6+
{[%clk 0:02:48.2]} 15... Qxf6 {[%clk 0:02:07.1]} 16. e4 {[%clk 0:02:43.5]} 16...
Be6 {[%clk 0:02:02.3]} 17. b4 {[%clk 0:02:40.2]} 17... a5 {[%clk 0:01:40.7]} 18.
b5 {[%clk 0:02:38]} 18... Na7 {[%clk 0:01:40.5]} 19. a4 {[%clk 0:02:37.1]} 19...
Nc8 {[%clk 0:01:40]} 20. Ba3 {[%clk 0:02:35.3]} 20... Rd8 {[%clk 0:01:38.8]} 21.
d3 {[%clk 0:02:35.1]} 21... Nb6 {[%clk 0:01:04.4]} 22. Bc5 {[%clk 0:02:34.3]}
22... Nd7 {[%clk 0:01:04.3]} 23. Bd6 {[%clk 0:02:29.2]} 23... Bg4 {[%clk
0:01:00.9]} 24. Ba3 {[%clk 0:02:24.7]} 24... Rac8 {[%clk 0:00:54.4]} 25. f4
{[%clk 0:02:21.2]} 25... Nc5 {[%clk 0:00:42.5]} 26. Bxc5 {[%clk 0:02:08.9]}
26... Rxc5 {[%clk 0:00:43.4]} 27. Ra2 {[%clk 0:02:01.6]} 27... Rdc8 {[%clk
0:00:42.9]} 28. f5 {[%clk 0:01:59.1]} 28... Qh6 {[%clk 0:00:32.4]} 29. Qe1
{[%clk 0:01:29.4]} 29... Rc1 {[%clk 0:00:27]} 30. Qf2 {[%clk 0:01:27]} 30... Qe3
{[%clk 0:00:26.1]} 31. h3 {[%clk 0:01:14]} 31... Rxf1+ {[%clk 0:00:21.9]} 32.
Bxf1 {[%clk 0:01:12.8]} 32... Bf3 {[%clk 0:00:21.5]} 33. Kh2 {[%clk 0:00:54.2]}
33... Rc1 {[%clk 0:00:20.3]} 34. Rc2 {[%clk 0:00:46.2]} 34... h6 {[%clk
0:00:17.9]} 35. Qxe3 {[%clk 0:00:42.2]} 35... Rxc2+ {[%clk 0:00:17.5]} 0-1

[Event "Late-Titled-Tuesday-Blitz-April-02-2024"]
[Site "Chess.com"]
[Date "2024.04.02"]
[Round "1"]
[White "Ahmadalrahely9999"]
[Black "Ar4uha"]
[Result "0-1"]
[WhiteElo "2252"]
[BlackElo "2595"]
[TimeControl "180+1"]
[EndTime "14:07:01 PDT"]
[Termination "Ar4uha won on time"]

1. e4 {[%clk 0:03:00.9]} 1... c5 {[%clk 0:02:58.6]} 2. Nf3 {[%clk 0:03:01.3]}
2... Nc6 {[%clk 0:02:58.4]} 3. Bb5 {[%clk 0:03:00.6]} 3... g6 {[%clk 0:02:55.6]}
4. O-O {[%clk 0:02:59.1]} 4... Bg7 {[%clk 0:02:55.7]} 5. Re1 {[%clk 0:02:59]}
5... Nh6 {[%clk 0:02:44.4]} 6. c3 {[%clk 0:02:53.1]} 6... O-O {[%clk 0:02:35.6]}
7. d4 {[%clk 0:02:52]} 7... cxd4 {[%clk 0:02:36]} 8. cxd4 {[%clk 0:02:52.1]}
8... d5 {[%clk 0:02:36.5]} 9. e5 {[%clk 0:02:51.3]} 9... Bg4 {[%clk 0:02:34.4]}
10. Bxc6 {[%clk 0:02:48.7]} 10... bxc6 {[%clk 0:02:34.4]} 11. Nbd2 {[%clk
0:02:48.8]} 11... f6 {[%clk 0:02:17.2]} 12. Qa4 {[%clk 0:02:44.6]} 12... Qb6
{[%clk 0:02:09.3]} 13. h3 {[%clk 0:02:37.5]} 13... Bd7 {[%clk 0:02:00.7]} 14.
Qa3 {[%clk 0:02:28.7]} 14... Nf5 {[%clk 0:01:48.3]} 15. Nb3 {[%clk 0:02:17.9]}
15... fxe5 {[%clk 0:01:45.7]} 16. dxe5 {[%clk 0:02:17.2]} 16... Nh4 {[%clk
0:01:25.3]} 17. Nfd4 {[%clk 0:01:50.5]} 17... Nf5 {[%clk 0:00:50.4]} 18. Nxf5
{[%clk 0:01:34.5]} 18... Rxf5 {[%clk 0:00:51.3]} 19. Be3 {[%clk 0:01:33.5]}
19... Qd8 {[%clk 0:00:50.4]} 20. f4 {[%clk 0:01:29]} 20... a5 {[%clk 0:00:45]}
21. Nd4 {[%clk 0:01:22.5]} 21... Rf8 {[%clk 0:00:43.4]} 22. Rac1 {[%clk
0:00:58.7]} 22... g5 {[%clk 0:00:43.4]} 23. Rf1 {[%clk 0:00:15.5]} 23... gxf4
{[%clk 0:00:35.9]} 24. Bxf4 {[%clk 0:00:16.4]} 24... Qb6 {[%clk 0:00:21]} 25.
Qc5 {[%clk 0:00:04]} 25... Qxb2 {[%clk 0:00:10.1]} 26. Rf2 {[%clk 0:00:01.4]}
26... Qb4 {[%clk 0:00:09]} 0-1